fUSD/lending_fUSD_20260308
["ID","MTS","AMOUNT","RATE_DAILY","PERIOD"]
[408001236,1773005437839,-334.0,0.00018333,2]
[408001258,1773005439938,-659.29533449,0.00018243,2]
[408001264,1773005440484,-25911.38795491,0.00018243,2]
[408001265,1773005440494,-20929.95369239,0.00018333,2]
[408001266,1773005440504,-503.0,0.0001837,3]
[408001267,1773005440514,-744.36181436,0.00018391,2]
[408001268,1773005440523,-2805.0,0.000184,2]
[408001269,1773005440532,-2872.0,0.000184,2]
[408001270,1773005440542,-500.0,0.00018433,2]
[408001272,1773005440551,-500.0,0.00018433,2]
[408001273,1773005440561,-500.0,0.00018433,2]
[408001274,1773005440570,-500.0,0.00018433,2]
[408001275,1773005440579,-500.0,0.00018433,2]
[408001276,1773005440589,-3411.1,0.00018464,2]
[408001277,1773005440598,-200.0,0.00018464,2]
[408001278,1773005440607,-150.0,0.00018464,2]
[408001279,1773005440616,-200.0,0.00018464,2]
[408001280,1773005440625,-224.6,0.00018464,2]
[408001281,1773005440635,-168.0,0.00018497,2]
[408001282,1773005440644,-1232.32308216,0.00018503,2]
[408001283,1773005440654,-1873.31781889,0.00018532,2]
[408001284,1773005440663,-462.5059905,0.0001862,2]
[408001285,1773005440672,-106685.30602557,0.00018621,2]
[408001286,1773005440691,-4386.02600372,0.00018621,2]
[408001287,1773005440702,-3142.60797071,0.00018621,2]
[408001288,1773005440710,-168.0,0.00018657,2]
[408001289,1773005440719,-500.0,0.00018673,2]
[408001290,1773005440728,-235.21838039,0.00018673,2]
[408001291,1773005440742,-500.0,0.00018673,2]
[408001292,1773005440751,-2286.2,0.00018676,2]
[408001293,1773005440760,-1873.31781881,0.00018684,2]
[408001294,1773005440770,-846.0,0.0001872,2]
[408001295,1773005440779,-1232.32308216,0.00018736,2]
[408001296,1773005440788,-3631.11,0.00018752,2]
[408001297,1773005440798,-155.51,0.000188,2]
[408001298,1773005440807,-377.3,0.00018803,2]
[408001299,1773005440817,-2351.0,0.00018813,2]
[408001300,1773005440826,-1873.31781881,0.00018836,2]
[408001301,1773005440836,-153.26656442,0.00018892,2]
[408001302,1773005440845,-377.3,0.00018912,2]
[408001303,1773005440855,-449.82,0.00018931,2]
[408001304,1773005440864,-1232.32308216,0.00018969,2]
[408001305,1773005440873,-1873.31781881,0.00018988,2]
[408001306,1773005440882,-515.55,0.00018991,2]
[408001307,1773005440891,-472.0,0.00018995,2]
[408001308,1773005440901,-1140.32875674,0.00019,30]
[408001309,1773005440911,-400.0,0.00019,6]
[408001310,1773005440920,-200.0,0.00019,6]
[408001311,1773005440930,-168.0,0.00019019,2]
[408001312,1773005440939,-168.0,0.00019021,2]
[408001313,1773005440948,-377.3,0.00019021,2]
[408001314,1773005440960,-847.0,0.0001904,2]
[408001315,1773005440970,-350.0,0.00019069,3]
[408001316,1773005440979,-900.0,0.000191,6]
[408001317,1773005440988,-400.0,0.000191,6]
[408001318,1773005440999,-377.3,0.00019129,2]
[408001319,1773005441008,-1873.31781881,0.0001914,2]
[408001320,1773005441017,-168.0,0.0001916,2]
[408001321,1773005441026,-350.0,0.00019174,2]
[408001322,1773005441040,-1700.0,0.00019178,7]
[408001323,1773005441049,-600.0,0.00019178,7]
[408001324,1773005441058,-1500.0,0.00019178,7]
[408001325,1773005441068,-490.43,0.00019178,30]
[408001326,1773005441077,-1541.03721467,0.000192,2]
[408001327,1773005441086,-1300.0,0.000192,7]
[408001328,1773005441095,-700.0,0.000192,7]
[408001329,1773005441104,-1232.32308216,0.00019201,2]
[408001330,1773005441113,-172.82949155,0.00019204,2]
[408001331,1773005441123,-500.0,0.00019221,2]
[408001332,1773005441131,-1000.0,0.00019221,2]
[408001333,1773005441141,-500.0,0.00019225,2]
[408001334,1773005441150,-377.3,0.00019238,2]
[408001335,1773005441159,-1286.0,0.00019269,2]
[408001336,1773005441168,-168.0,0.00019273,2]
[408001337,1773005441177,-1873.31781881,0.00019292,2]
[408001338,1773005441186,-1800.0,0.000193,7]
[408001339,1773005441195,-900.0,0.000193,7]
[408001340,1773005441205,-500.0,0.00019333,2]
[408001341,1773005441214,-494.64624274,0.00019333,2]
[408001342,1773005441223,-205.88057451,0.00019333,2]
[408001343,1773005441232,-500.0,0.00019333,2]
[408001344,1773005441241,-500.0,0.00019333,2]
[408001345,1773005441251,-500.0,0.00019333,2]
[408001346,1773005441260,-377.3,0.00019347,2]
[408001347,1773005441269,-350.0,0.0001935,2]
[408001348,1773005441279,-1286.0,0.00019364,2]
[408001349,1773005441288,-155.51,0.000194,2]
[408001350,1773005441297,-2300.0,0.000194,7]
[408001351,1773005441307,-1100.0,0.000194,7]
[408001352,1773005441316,-1232.32308216,0.00019434,2]
[408001353,1773005441325,-1873.31781881,0.00019444,2]
[408001354,1773005441334,-1286.0,0.0001945,2]
[408001355,1773005441343,-1000.0,0.00019452,2]
[408001356,1773005441352,-377.3,0.00019456,2]
[408001357,1773005441362,-1286.0,0.0001948,2]
[408001358,1773005441372,-224.6,0.0001949,2]
[408001359,1773005441381,-2000.0,0.000195,2]
[408001360,1773005441390,-400.0,0.000195,7]
[408001361,1773005441399,-200.0,0.000195,7]
[408001362,1773005441409,-2000.0,0.000195,2]
[408001363,1773005441418,-558.28628342,0.00019538,2]
[408001364,1773005441428,-377.3,0.00019565,2]
[408001365,1773005441437,-1873.31781881,0.00019596,2]
[408001366,1773005441447,-1119.213953,0.000196,2]
[408001367,1773005441457,-400.0,0.000196,7]
[408001368,1773005441466,-924.96860637,0.000196,2]
[408001369,1773005441476,-200.0,0.000196,7]
[408001370,1773005441486,-2000.0,0.000196,2]
[408001371,1773005441496,-350.0,0.000196,2]
[408001372,1773005441505,-877.24,0.00019629,2]
[408001373,1773005441515,-781.25,0.00019629,2]
[408001374,1773005441524,-1286.0,0.00019656,2]
[408001375,1773005441533,-1232.32308216,0.00019667,2]
[408001376,1773005441542,-1286.0,0.00019669,2]
[408001377,1773005441553,-377.3,0.00019674,2]
[408001378,1773005441562,-400.0,0.000197,7]
[408001379,1773005441571,-200.0,0.000197,7]
[408001380,1773005441581,-2000.0,0.000197,2]
[408001381,1773005441590,-350.0,0.00019707,2]
[408001382,1773005441600,-154.34344167,0.00019711,2]
[408001383,1773005441610,-500.0,0.00019711,2]
[408001384,1773005441619,-500.0,0.00019711,2]
[408001385,1773005441629,-500.0,0.00019711,2]
[408001386,1773005441638,-500.0,0.00019711,2]
[408001387,1773005441647,-500.0,0.00019711,2]
[408001388,1773005441656,-150.0,0.00019711,2]
[408001389,1773005441666,-500.0,0.00019711,2]
[408001390,1773005441675,-150.0,0.00019711,2]
[408001391,1773005441685,-150.0,0.00019711,2]
[408001392,1773005441694,-500.0,0.00019711,2]
[408001393,1773005441703,-500.0,0.00019711,2]
[408001394,1773005441713,-217.22,0.00019711,2]
[408001395,1773005441723,-200.0,0.00019711,2]
[408001396,1773005441732,-150.0,0.00019711,2]
[408001397,1773005441741,-150.0,0.00019711,2]
[408001398,1773005441751,-150.0,0.00019711,2]
[408001399,1773005441760,-500.0,0.00019711,2]
[408001400,1773005441769,-500.0,0.00019711,2]
[408001401,1773005441779,-177.89931814,0.00019711,2]
[408001402,1773005441789,-150.0,0.00019711,2]
[408001403,1773005441798,-150.0,0.00019711,2]
[408001404,1773005441807,-500.0,0.00019711,2]
[408001405,1773005441816,-150.0,0.00019711,2]
[408001406,1773005441825,-150.0,0.00019711,2]
[408001407,1773005441835,-150.0,0.00019711,2]
[408001408,1773005441845,-150.0,0.00019711,2]
[408001409,1773005441854,-150.0,0.00019711,2]
[408001410,1773005441863,-500.0,0.00019711,2]
[408001411,1773005441872,-500.0,0.00019711,2]
[408001412,1773005441881,-500.0,0.00019711,2]
[408001413,1773005441891,-558.28628342,0.00019719,2]
[408001414,1773005441900,-1000.0,0.00019726,2]
[408001415,1773005441909,-374.1097302,0.00019731,2]
[408001416,1773005441919,-503.0,0.00019739,4]
[408001417,1773005441928,-500.0,0.00019747,2]
[408001418,1773005441938,-1873.31781881,0.00019748,2]
[408001419,1773005441948,-500.0,0.00019766,2]
[408001420,1773005441960,-500.0,0.00019766,2]
[408001421,1773005441971,-500.0,0.00019766,2]
[408001422,1773005441980,-500.0,0.00019766,2]
[408001423,1773005441991,-500.0,0.00019766,2]
[408001424,1773005442002,-150.0,0.00019766,2]
[408001425,1773005442013,-500.0,0.00019766,2]
[408001426,1773005442024,-150.0,0.00019766,2]
[408001427,1773005442035,-294.11265572,0.00019766,2]
[408001428,1773005442044,-503.48441563,0.00019766,2]
[408001429,1773005442054,-512.0,0.00019766,2]
[408001430,1773005442063,-150.0,0.00019766,2]
[408001431,1773005442075,-150.0,0.00019766,2]
[408001432,1773005442085,-150.0,0.00019766,2]
[408001433,1773005442094,-500.0,0.00019766,2]
[408001434,1773005442103,-502.49983748,0.00019766,2]
[408001435,1773005442112,-150.0,0.00019766,2]
[408001436,1773005442121,-200.0,0.00019766,2]
[408001437,1773005442130,-500.0,0.00019766,2]
[408001438,1773005442140,-150.0,0.00019766,2]
[408001439,1773005442149,-150.0,0.00019766,2]
[408001440,1773005442159,-150.0,0.00019766,2]
[408001441,1773005442168,-150.0,0.00019766,2]
[408001442,1773005442177,-500.0,0.00019766,2]
[408001443,1773005442187,-500.0,0.00019766,2]
[408001444,1773005442196,-500.0,0.00019766,2]
[408001445,1773005442205,-447.0,0.00019767,2]
[408001446,1773005442215,-1500.0,0.00019768,2]
[408001447,1773005442224,-556.1229892,0.00019773,2]
[408001448,1773005442233,-377.3,0.00019782,2]
[408001449,1773005442243,-400.0,0.000198,7]
[408001450,1773005442252,-200.0,0.000198,7]
[408001451,1773005442261,-2000.0,0.000198,2]
[408001452,1773005442270,-2000.0,0.000198,2]
[408001453,1773005442279,-268.0,0.00019804,2]
[408001454,1773005442289,-2542.72101729,0.0001981,2]
[408001455,1773005442298,-500.0,0.00019821,2]
[408001456,1773005442308,-500.0,0.00019821,2]
[408001457,1773005442317,-500.0,0.00019821,2]
[408001458,1773005442326,-150.0,0.00019821,2]
[408001459,1773005442336,-500.0,0.00019821,2]
[408001460,1773005442345,-150.0,0.00019821,2]
[408001461,1773005442355,-500.0,0.00019821,2]
[408001462,1773005442364,-165.95964201,0.00019821,2]
[408001463,1773005442373,-200.0,0.00019821,2]
[408001464,1773005442382,-208.62446348,0.00019821,2]
[408001465,1773005442391,-150.0,0.00019821,2]
[408001466,1773005442401,-500.0,0.00019821,2]
[408001467,1773005442410,-150.0,0.00019821,2]
[408001468,1773005442419,-200.0,0.00019821,2]
[408001469,1773005442428,-201.16147339,0.00019821,2]
[408001470,1773005442437,-214.0,0.00019821,2]
[408001471,1773005442447,-150.0,0.00019821,2]
[408001472,1773005442455,-349.5192988,0.00019821,2]
[408001480,1773005442465,-573.88791799,0.00019821,2]
[408001483,1773005442718,-500.0,0.00019821,2]
[408001485,1773005442727,-4797.207,0.00019821,2]
[408001488,1773005442736,-154.78,0.0001984,2]
[408001489,1773005442746,-200.0,0.0001984,2]
[408001490,1773005442755,-150.0,0.00019848,2]
[408001491,1773005442764,-314.52367001,0.00019875,2]
[408001492,1773005442773,-500.0,0.00019875,2]
[408001493,1773005442783,-500.0,0.00019875,2]
[408001494,1773005442792,-150.0,0.00019875,2]
[408001495,1773005442802,-234.47576362,0.00019875,2]
[408001496,1773005442811,-350.0,0.00019875,2]
[408001497,1773005442821,-150.0,0.00019875,2]
[408001498,1773005442830,-500.0,0.00019875,2]
[408001499,1773005442839,-150.0,0.00019875,2]
[408001500,1773005442850,-200.0,0.00019875,2]
[408001501,1773005442859,-500.0,0.00019875,2]
[408001502,1773005442868,-350.0,0.00019879,3]
[408001503,1773005442877,-5326.2287,0.0001988,2]
[408001504,1773005442887,-1000.0,0.00019881,2]
[408001505,1773005442896,-1000.0,0.00019881,2]
[408001506,1773005442905,-1000.0,0.00019881,2]
[408001507,1773005442914,-1000.0,0.00019881,2]
[408001508,1773005442924,-377.3,0.00019891,2]
[408001509,1773005442933,-467.8820494,0.00019899,2]
[408001510,1773005442942,-1000.0,0.000199,2]
[408001511,1773005442951,-32923.6528,0.000199,2]
[408001512,1773005442967,-2000.0,0.000199,2]
[408001513,1773005442976,-2000.0,0.000199,2]
[408001514,1773005442986,-25000.0,0.000199,3]
[408001515,1773005442996,-2000.0,0.000199,2]
[408001516,1773005443007,-2000.0,0.000199,2]
[408001517,1773005443016,-2000.0,0.000199,2]
[408001518,1773005443026,-2000.0,0.000199,2]
[408001519,1773005443038,-150.0,0.000199,2]
[408001520,1773005443047,-5800.0,0.000199,2]
[408001521,1773005443056,-1079.6828115,0.000199,2]
[408001522,1773005443066,-150.0,0.000199,2]
[408001523,1773005443075,-558.28628342,0.000199,2]
[408001524,1773005443084,-10000.0,0.000199,2]
[408001525,1773005443094,-500.0,0.000199,2]
[408001526,1773005443103,-500.0,0.000199,2]
[408001527,1773005443112,-331.18055175,0.000199,2]
[408001528,1773005443121,-21473.36841664,0.000199,3]
[408001529,1773005443130,-200.72181509,0.000199,2]
[408001530,1773005443139,-900.0,0.000199,7]
[408001531,1773005443148,-1873.31781881,0.000199,2]
[408001532,1773005443158,-951.53037599,0.000199,2]
[408001533,1773005443167,-2000.0,0.000199,2]
[408001534,1773005443177,-150.0,0.000199,2]
[408001535,1773005443187,-2000.0,0.000199,2]
[408001536,1773005443196,-2310.53653468,0.000199,2]
[408001537,1773005443205,-4039.68915363,0.000199,2]
[408001538,1773005443214,-600.0,0.000199,7]
[408001539,1773005443223,-1232.32308216,0.000199,2]
[408001540,1773005443232,-157.40983265,0.000199,2]
[408001541,1773005443241,-4299.0,0.000199,2]
[408001542,1773005443250,-877.24,0.00019903,2]
[408001544,1773005443260,-781.25,0.00019903,2]
[408001546,1773005443269,-297.0,0.00019906,2]
[408001547,1773005443278,-500.0,0.0001993,2]
[408001548,1773005443287,-500.0,0.0001993,2]
[408001549,1773005443296,-246.24370704,0.0001993,2]
[408001550,1773005443305,-500.0,0.0001993,2]
[408001551,1773005443314,-150.0,0.0001993,2]
[408001552,1773005443324,-500.0,0.0001993,2]
[408001553,1773005443333,-150.0,0.00019932,2]
[408001554,1773005443343,-500.0,0.0001997,2]
[408001555,1773005443352,-700.0,0.0001997,2]
[408001556,1773005443361,-500.0,0.0001997,2]
[408001557,1773005443369,-700.0,0.0001997,2]
[408001558,1773005443378,-500.0,0.0001997,2]
[408001559,1773005443387,-700.0,0.0001997,2]
[408001560,1773005443396,-500.0,0.0001997,2]
[408001561,1773005443406,-700.0,0.0001997,2]
[408001562,1773005443415,-500.0,0.0001997,2]
[408001563,1773005443424,-700.0,0.0001997,2]
[408001564,1773005443433,-700.0,0.0001997,2]
[408001565,1773005443443,-700.0,0.0001997,2]
[408001566,1773005443452,-700.0,0.0001997,2]
[408001567,1773005443461,-700.0,0.0001997,2]
[408001568,1773005443470,-982.047401,0.0001997,2]
[408001569,1773005443479,-500.0,0.00019973,2]
[408001570,1773005443488,-500.0,0.00019973,2]
[408001571,1773005443497,-6110.0,0.00019973,2]
[408001572,1773005443506,-570.0,0.00019973,2]
[408001573,1773005443514,-150.0,0.00019973,2]
[408001574,1773005443523,-1279.0,0.0001998,2]
[408001575,1773005443532,-150.0,0.0001998,2]
[408001576,1773005443543,-922.0,0.0001998,2]
[408001577,1773005443552,-1213.0,0.0001998,2]
[408001578,1773005443561,-619.0,0.0001998,2]
[408001579,1773005443570,-2460.0,0.0001998,2]
[408001580,1773005443579,-3504.0,0.0001998,2]
[408001581,1773005443588,-500.0,0.00019985,2]
[408001582,1773005443598,-231.1610732,0.00019985,2]
[408001583,1773005443606,-500.0,0.00019985,2]
[408001584,1773005443615,-250.0,0.00019985,2]
[408001585,1773005443624,-540.0,0.00019985,2]
[408001586,1773005443633,-217.22,0.00019985,2]
[408001587,1773005443643,-1286.0,0.00019993,2]
[408001588,1773005443652,-185.84,0.00019993,2]
[408001589,1773005443661,-179.0,0.00019995,2]
[408001590,1773005443671,-300.0,0.00019999,2]
[408001591,1773005443680,-500.0,0.00019999,2]
[408001592,1773005443690,-500.0,0.00019999,2]
[408001593,1773005443699,-500.0,0.00019999,2]
[408001594,1773005443708,-500.0,0.00019999,2]
[408001595,1773005443719,-500.0,0.00019999,2]
[408001596,1773005443728,-313.41,0.00019999,2]
[408001597,1773005443737,-500.0,0.00019999,2]
[408001598,1773005443746,-500.0,0.00019999,2]
[408001599,1773005443755,-500.0,0.00019999,2]
[408001600,1773005443764,-500.0,0.00019999,2]
[408001601,1773005443774,-499.92362241,0.00019999,2]
[408001602,1773005443783,-205.44110038,0.00019999,2]
[408001603,1773005443793,-500.0,0.00019999,2]
[408001604,1773005443802,-307.79008952,0.00019999,2]
[408001605,1773005443812,-500.0,0.00019999,2]
[408001606,1773005443821,-170.03111941,0.00019999,2]
[408001607,1773005443831,-500.0,0.00019999,2]
[408001608,1773005443841,-500.0,0.00019999,2]
[408001609,1773005443850,-166.08831719,0.00019999,2]
[408001610,1773005443860,-500.0,0.00019999,2]
[408001611,1773005443871,-500.0,0.00019999,2]
[408001612,1773005443882,-500.0,0.00019999,2]
[408001613,1773005443891,-500.0,0.00019999,2]
[408001614,1773005443901,-500.0,0.00019999,2]
[408001615,1773005443910,-151.0,0.0002,2]
[408001616,1773005443920,-151.0,0.0002,2]
[408001617,1773005443929,-151.0,0.0002,2]
[408001618,1773005443939,-151.0,0.0002,2]
[408001619,1773005443948,-151.0,0.0002,2]
[408001620,1773005443959,-160.44308583,0.0002,2]
[408001621,1773005443968,-151.0,0.0002,2]
[408001622,1773005443977,-151.0,0.0002,2]
[408001623,1773005443987,-1515.0,0.0002,2]
[408001624,1773005443996,-151.0,0.0002,2]
[408001625,1773005444007,-151.0,0.0002,2]
[408001626,1773005444016,-1515.0,0.0002,2]
[408001627,1773005444026,-151.0,0.0002,2]
[408001628,1773005444037,-1515.0,0.0002,2]
[408001629,1773005444046,-151.0,0.0002,2]
[408001630,1773005444055,-1515.0,0.0002,2]
[408001631,1773005444065,-1515.0,0.0002,2]
[408001632,1773005444074,-1515.0,0.0002,2]
[408001633,1773005444083,-1515.0,0.0002,2]
[408001634,1773005444092,-1515.0,0.0002,2]
[408001635,1773005444102,-1515.0,0.0002,2]
[408001636,1773005444111,-1515.0,0.0002,2]
[408001637,1773005444120,-1515.0,0.0002,2]
[408001638,1773005444130,-1515.0,0.0002,2]
[408001639,1773005444139,-1515.0,0.0002,2]
[408001640,1773005444150,-1515.0,0.0002,2]
[408001641,1773005444160,-1515.0,0.0002,2]
[408001642,1773005444169,-1515.0,0.0002,2]
[408001643,1773005444179,-500.33449997,0.0002,2]
[408001644,1773005444188,-2892.0,0.0002,2]
[408001645,1773005444197,-407751.092142,0.0002,2]
[408001646,1773005444342,-4528.27067227,0.0002,2]
[408001647,1773005444375,-989.29856,0.0002,2]
[408001648,1773005444389,-467784.00000007,0.0002,2]
[408001649,1773005444410,-736.00102635,0.0002,2]
[408001655,1773005446339,-161.0,0.0001904,2]
[408001656,1773005446349,-1116.18183177,0.0002,2]
[408001657,1773005446366,-1005.31540686,0.0002,2]
[408001658,1773005446378,-1138.00561177,0.0002,2]
[408001659,1773005742241,-157.4,0.00014,2]
[408001660,1773005747956,161.96,9.238e-05,2]
[408001661,1773005748204,111.99415763,0.00013857,2]
[408001662,1773005748231,49.96584237,0.00013857,2]
[408001663,1773006418618,-157.4,0.00014975,2]
[408001664,1773006418640,-250.0,0.00015,2]
[408001665,1773006418661,-157.4,0.0001595,2]
[408001666,1773006418683,-463.38730048,0.00016302,2]
[408001667,1773006418703,-1200.0,0.00016471,2]
[408001668,1773006418727,-300.0,0.00016471,2]
[408001669,1773006418749,-195.0,0.00016472,2]
[408001670,1773006418770,-195.0,0.00016472,2]
[408001671,1773006418797,-195.0,0.00016472,2]
[408001672,1773006418820,-195.0,0.00016472,2]
[408001673,1773006418844,-195.0,0.00016472,2]
[408001674,1773006418866,-2500.0,0.00016472,2]
[408001675,1773006418890,-2500.0,0.00016472,2]
[408001676,1773006418911,-790.24070377,0.000169,2]
[408001677,1773006418932,-157.4,0.00016925,2]
[408001678,1773006418955,-120019.1365,0.00016947,2]
[408001679,1773006418975,-300.0,0.00017,2]
[408001680,1773006418995,-9999.99,0.00017,2]
[408001681,1773006419020,-150.99,0.00017,2]
[408001682,1773006419041,-720.72,0.00017,2]
[408001683,1773006419062,-503.0,0.00017,2]
[408001684,1773006419082,-299.99,0.00017,4]
[408001685,1773006419103,-19999.99,0.00017,2]
[408001686,1773006419124,-5326.2287,0.00017627,2]
[408001687,1773006419145,-150.99,0.00017627,2]
[408001688,1773006419166,-157.4,0.000179,2]
[408001689,1773006419188,-576.02407603,0.00017982,2]
[408001690,1773006419210,-420.0,0.00018,2]
[408001691,1773006491546,467.8820494,0.00017982,2]
[408001692,1773006614493,5900.0,0.00015,3]
[408001699,1773006631973,-503.0,0.00017,2]
[408001700,1773006631984,-150.0,0.000179,2]
[408001701,1773006631994,-2000.0,0.00018074,2]
[408001702,1773006632003,-300.0,0.00018081,2]
[408001703,1773006632013,-1200.0,0.00018081,2]
[408001704,1773006632023,-1700.0,0.00018082,7]
[408001705,1773006632032,-700.0,0.00018082,7]
[408001707,1773006632041,-1600.0,0.00018082,7]
[408001709,1773006632051,-195.0,0.00018086,2]
[408001710,1773006632060,-467.04,0.00018133,2]
[408001713,1773006632070,-195.0,0.00018165,2]
[408001714,1773006632079,-195.0,0.00018165,2]
[408001715,1773006632089,-195.0,0.00018165,2]
[408001716,1773006632098,-3422.15,0.00018209,2]
[408001718,1773006632108,-397.4,0.00018246,2]
[408001720,1773006632118,-1831.41,0.00018314,2]
[408001721,1773006632127,-500.0,0.00018332,2]
[408001722,1773006632137,-500.0,0.00018332,2]
[408001723,1773006632147,-500.0,0.00018332,2]
[408001724,1773006632156,-3240.0,0.00018341,2]
[408001725,1773006632166,-503.0,0.0001837,3]
[408001726,1773006632176,-150.0,0.0001841,2]
[408001727,1773006632185,-589.0,0.00018469,2]
[408001728,1773006632195,-161.96,0.00018476,2]
[408001729,1773006632204,-168.0,0.00018518,2]
[408001730,1773006632214,-2156.65,0.00018672,2]
[408001731,1773006632223,-471.6,0.00018783,2]
[408001732,1773006632232,-157.4,0.00018875,2]
[408001733,1773006632242,-471.6,0.00018894,2]
[408001734,1773006632252,-122412.03743418,0.00018915,2]
[408001735,1773006632263,-17260.05588394,0.00018915,2]
[408001736,1773006632274,-292.91733824,0.00018915,2]
[408001737,1773006632300,-1978.6847,0.00018915,2]
[408001738,1773006632311,-1495.449565,0.00018915,2]
[408001739,1773006637155,2881.9262875,0.00015,2]
[408001743,1773006638441,-40706.89289354,0.00018915,2]
[408001744,1773006638453,-670.47,0.00018915,2]
[408001745,1773006638465,-3400.15,0.00018915,2]
[408001746,1773006638503,-4130.39922894,0.00018915,2]
[408001747,1773006638514,-3064.01718014,0.00018915,2]
[408001748,1773006638526,-9036.3840054,0.00018915,2]
[408001749,1773006638537,-72145.04198734,0.00018915,2]
[408001752,1773006640076,-1135.89710043,0.00018915,2]
[408001756,1773006640361,-29577.66008285,0.00018915,2]
[408001757,1773006640371,-449.82,0.00018931,2]
[408001758,1773006640380,-447.16735946,0.00018931,2]
[408001759,1773006640390,-411.85,0.00018931,2]
[408001760,1773006640399,-441.81,0.00018931,2]
[408001761,1773006640408,-205.0,0.00018963,2]
[408001762,1773006640417,-166.66,0.0001898,2]
[408001763,1773006640427,-1100.0,0.00019,6]
[408001764,1773006640436,-471.6,0.00019004,2]
[408001765,1773006640445,-153.26961311,0.00019015,2]
[408001766,1773006640454,-162.0,0.00019039,2]
[408001767,1773006640463,-467.04,0.00019039,2]
[408001768,1773006640472,-2200.0,0.000191,6]
[408001769,1773006640482,-471.6,0.00019115,2]
[408001770,1773006640491,-172.82949155,0.00019129,2]
[408001771,1773006640499,-160.0,0.00019132,2]
[408001772,1773006640509,-1700.0,0.00019178,7]
[408001773,1773006640518,-700.0,0.00019178,7]
[408001774,1773006640527,-1600.0,0.00019178,7]
[408001775,1773006640536,-1000.0,0.00019178,2]
[408001776,1773006640546,-350.0,0.00019197,2]
[408001777,1773006640555,-2000.0,0.000192,2]
[408001778,1773006640564,-3300.0,0.000192,7]
[408001779,1773006640573,-350.0,0.00019222,2]
[408001780,1773006640582,-1000.0,0.00019225,2]
[408001781,1773006640591,-471.6,0.00019226,2]
[408001782,1773006640600,-500.0,0.00019226,2]
[408001783,1773006640610,-866.0,0.00019282,2]
[408001784,1773006640619,-866.0,0.00019288,2]
[408001785,1773006640628,-549.68387848,0.00019291,2]
[408001786,1773006640638,-500.0,0.00019291,2]
[408001787,1773006640647,-2000.0,0.000193,2]
[408001788,1773006640657,-4400.0,0.000193,7]
[408001789,1773006640667,-471.6,0.00019336,2]
[408001790,1773006640676,-866.0,0.00019344,2]
[408001791,1773006640686,-2805.0,0.0001936,2]
[408001792,1773006640695,-2000.0,0.000194,2]
[408001794,1773006640705,-2500.0,0.000194,2]
[408001795,1773006640714,-5600.0,0.000194,7]
[408001796,1773006640723,-4137.6111,0.00019422,2]
[408001797,1773006640732,-518.4216684,0.00019422,2]
[408001798,1773006640742,-500.0,0.00019437,2]
[408001799,1773006640751,-471.6,0.00019447,2]
[408001800,1773006640763,-1000.0,0.00019452,2]
[408001801,1773006640772,-518.42166839,0.00019475,2]
[408001802,1773006640781,-1100.0,0.000195,7]